Cogmind - Beta 11.1 @@@ ROGUE MODE // 2022.07.26 @ 23:41:59 Player: Crimson_Fox Result: Destroyed by H-81 Overseer with Heavy Linear Accelerator Performance ------------- Evolutions (8) 4000 Regions Visited (16) 3200 Robots Destroyed (128) 640 Value Destroyed (4404) 4404 Prototype IDs (29) 580 Alien Tech Used (2) 400 Bonus (1164) 1164 TOTAL SCORE: 14388 Bonus ------- High Alert Combat Kills 206 Follower Combat Kills 158 Entered DSFs 500 Met Zhirov 300 Cogmind --------- Core Integrity 0/1450 Matter 13/300 Energy 149/150 System Corruption 0% Temperature Cool (2) Movement Hovering (70) Location -2/Research Parts ------- > --- POWER (2) -------- Micro Antimatter Reactor > --- PROPULSION (5) --- Improved Gyrokinetic Inverter > --- UTILITY (12) ----- Triangulator Improved Targeting Computer Improved Targeting Computer Core Analyzer ECM Suite Graphene Brace Improved Corruption Screen Advanced Corruption Screen > --- WEAPON (4) ------- (None) > --- INVENTORY (5) ---- Light Quantum Reactor System Restoration Module Enhanced Quantum Rifle Enhanced Nova Cannon Fusion Bomb Launcher Peak State ------------ > --- POWER ------------ Micro Antimatter Reactor Compact Particle Reactor > --- PROPULSION ------- Cooled Nuclear Pulse Thruster Q-thruster Q-thruster Impulse Thruster Array > --- UTILITY ---------- Advanced Heat Sink Advanced Weight Redist. System Triangulator Improved Targeting Computer Improved Targeting Computer ECM Suite Cloaking Device Graphene Brace Advanced Force Field Hacking Suite Improved Corruption Screen > --- WEAPON ----------- Precision Phase Gun Long-range Phase Cannon > --- INVENTORY -------- Advanced Force Field Advanced Corruption Screen System Restoration Module Precision Phase Gun Powered Hammer [Rating: 123] Favorites ----------- Power Improved Ion Engine Engine Improved Ion Engine Power Core Micro Fission Core Reactor Micro Antimatter Reactor Propulsion Armored Wheel Treads Medium Treads Leg Aluminum Leg Wheel Armored Wheel Hover Unit Gravmag Array Flight Unit Cooled Nuclear Pulse Thruster Utility Small Storage Unit Device Improved Heat Sink Storage Small Storage Unit Processor Improved Targeting Computer Hackware Improved System Shield Protection Experimental Propulsion Shielding Weapon Heavy Particle Cannon Energy Gun Heavy Laser Energy Cannon Heavy Particle Cannon Ballistic Gun Assault Rifle Ballistic Cannon Gauss Cannon Launcher Rocket Launcher Impact Weapon Great Maul Piercing Weapon Lance Build | -11 -10 -10 -9 -8 -8 -7 -6 -6 -5 -5 -5 -5 -4 -4 -3 -2 ------- Run | Scr Mat Min Mat Mat Sto Fac Fac DSF Fac Upp Upp Zhi Pro Fac Res Res Slots Evolved 16 | . . . 2 2 . 2 2 . 2 . . . . 2 2 2 Power 1 | . . . . . . . . . 1 . . . . . . . Propulsion 3 | . . . 1 1 . . . . . . . . . . 1 . Utility 10 | . . . . 1 . 2 2 . 1 . . . . 1 1 2 Weapon 2 | . . . 1 . . . . . . . . . . 1 . . Parts Attached 230 | 7 9 6 22 2 17 36 2 7 11 9 17 8 . 21 29 27 Power 34 | 1 1 . 4 . 2 3 . 2 2 . 2 1 . 5 4 7 Engine 9 | 1 1 . 3 . 1 1 . 2 . . . . . . . . Core 8 | . . . 1 . 1 2 . . 2 . 2 . . . . . Reactor 17 | . . . . . . . . . . . . 1 . 5 4 7 Propulsion 56 | 2 3 3 5 1 4 7 . 4 . 9 5 4 . 2 4 3 Treads 1 | . . . . . . . . . . . 1 . . . . . Leg 8 | . 3 . . . 1 2 . . . 1 1 . . . . . Wheel 23 | 2 . 3 5 1 3 4 . . . 2 3 . . . . . Hover 7 | . . . . . . 1 . 4 . 1 . . . . . 1 Flight 17 | . . . . . . . . . . 5 . 4 . 2 4 2 Utility 72 | 2 2 . 2 1 2 15 2 1 6 . 1 2 . 12 15 9 Device 53 | . 2 . 1 1 1 10 2 1 4 . 1 . . 10 14 6 Storage 7 | 2 . . 1 . 1 2 . . . . . 1 . . . . Processor 8 | . . . . . . 2 . . 1 . . . . 2 . 3 Hackware 3 | . . . . . . 1 . . 1 . . . . . 1 . Protection 1 | . . . . . . . . . . . . 1 . . . . Artifact . | . . . . . . . . . . . . . . . . . Weapon 68 | 2 3 3 11 . 9 11 . . 3 . 9 1 . 2 6 8 Energy Gun 21 | 1 . . 2 . 2 5 . . 1 . 1 1 . 1 4 3 Energy Cannon 18 | . 2 1 6 . 3 4 . . . . . . . . 1 1 Ballistic Gun 9 | 1 1 1 2 . . . . . . . 2 . . 1 1 . Ballistic Cannon 6 | . . . . . . . . . 2 . 4 . . . . . Launcher 7 | . . 1 . . 2 . . . . . . . . . . 4 Special Weapon . | . . . . . . . . . . . . . . . . . Impact Weapon 5 | . . . 1 . 2 2 . . . . . . . . . . Slashing Weapon . | . . . . . . . . . . . . . . . . . Piercing Weapon 2 | . . . . . . . . . . . 2 . . . . . Special Melee Weapon . | . . . . . . . . . . . . . . . . . Unidentified Prototypes 18 | . . . . . 2 2 . . . . . 6 . 2 3 3 Parts Lost 75 | . . . 5 . 6 8 . 13 . 1 17 . . 1 6 18 Power 7 | . . . . . . 2 . 1 . . 2 . . . . 2 Propulsion 23 | . . . 2 . 3 5 . 2 . 1 4 . . . . 6 Utility 30 | . . . . . 1 . . 7 . . 7 . . 1 5 9 Weapon 15 | . . . 3 . 2 1 . 3 . . 4 . . . 1 1 Highest Loss Streak 17 | . . . 2 . 3 2 . 13 . 1 17 . . 1 6 15 To Critical Strikes . | . . . . . . . . . . . . . . . . . Average Slot Usage (%) 84 | . 99 100 97 100 95 93 . 47 45 77 72 14 47 61 74 53 Engine 5 | . 14 14 8 9 8 5 . 3 . . . . . . . . Core 2 | . . . 2 . . 1 . 2 9 11 9 . . . . . Reactor 1 | . . . . . . . . . . . . 1 5 5 7 5 Leg 5 | . 12 19 . . 4 9 . . . 2 . . . . . . Wheel 14 | . 15 8 31 36 28 14 . 4 . 3 12 . . . . . Hover 1 | . . . . . . . . 7 11 5 1 . . . . 1 Flight 2 | . . . . . . . . . . 1 . 8 23 20 19 6 Device 14 | . 12 14 11 18 13 10 . 7 12 20 15 . . 19 30 18 Storage 9 | . 15 14 11 9 12 14 . 8 5 5 4 1 5 2 . . Processor 4 | . . . . . . 8 . 3 . 5 4 . . . 9 17 Hackware 1 | . . . . . . 2 . 3 . 5 4 . . . . 1 Energy Gun 2 | . 1 . 3 . . 4 . . 1 5 1 1 5 2 3 1 Energy Cannon 8 | . 17 8 17 18 17 9 . 4 . . . . . . . . Ballistic Gun 2 | . 8 10 3 . . . . . . . . . . 4 . . Launcher 1 | . . 9 1 . 1 . . . . . . . . . . . Impact Weapon 3 | . . . 5 9 7 7 . 2 . . . . . . . . Naked Turns 83 | . . . . . . . . . . . 34 49 . . . . Heaviest Build 53 | 18 18 18 29 30 30 40 39 39 36 36 43 23 23 37 47 53 Greatest Support 52 | 20 20 20 36 48 48 52 52 52 40 40 48 24 24 33 47 47 Greatest Overweight (x) 4 | . . . . . 2 2 . . . 2 3 . . 1 2 4 Average Overweight (x) . | . . . . . . . . . . . . . . . . . Largest Inventory Capacity 8 | 8 8 8 8 8 8 8 8 8 5 5 5 5 5 5 5 5 Average Capacity 6 | 7 8 8 8 8 8 7 8 6 5 5 5 5 5 5 5 5 Most Carried 8 | 7 8 8 8 7 8 8 5 8 5 5 5 5 1 5 5 5 Average Carried 6 | 4 7 7 7 6 7 7 4 3 2 4 4 2 1 4 4 4 Final Capacity 8 | 8 8 8 8 8 8 8 8 5 5 5 5 5 5 5 5 5 Final Carried 8 | 6 8 7 8 7 8 6 4 2 5 5 3 1 1 5 5 5 Class Distribution -------------------- 42% | Mutant 20% | Scavenger-Mutant 19% | Infiltrator-Mutant 5% | Infiltrator-Sprinter 4% | Sprinter 3% | Scavenger-Gunner Dominant Class ---------------- Mutant | -10/Materials Mutant | -10/Mines Mutant | -9/Materials Mutant | -8/Materials Scavenger-Mutant | -8/Storage Mutant | -7/Factory Mutant | -6/Factory Mutant | -6/DSF Mutant | -5/Factory Infiltrator-Mutant | -5/Upper Caves Infiltrator-Mutant | -5/Upper Caves Mutant | -5/Zhirov Sprinter | -4/Proximity Caves Sprinter | -4/Factory Scavenger-Sprinter | -3/Research Infiltrator-Mutant | -2/Research Resources | -11 -10 -10 -9 -8 -8 -7 -6 -6 -5 -5 -5 -5 -4 -4 -3 -2 ----------- Run | Scr Mat Min Mat Mat Sto Fac Fac DSF Fac Upp Upp Zhi Pro Fac Res Res Matter Collected 2653 | 270 120 158 264 30 226 344 . 7 136 221 254 . . 104 397 122 Remotely . | . . . . . . . . . . . . . . . . . Salvage Created 5361 | 94 151 51 1020 87 1379 1080 . . 73 61 402 . . 104 666 193 Parts 234 | 4 10 7 56 5 53 31 . . 5 5 21 . . 3 31 3 Haulers Intercepted 2 | . . . . . 2 . . . . . . . . . . . Recyclers Shooed 1 | . . . . . . . . . . . . . . . 1 . Parts Field Recycled 2 | . . . . . . . . . . . . . . 2 . . Retrieved Matter 4 | . . . . . . . . . . . . . . 4 . . Parts Self-Destructed 24 | . . . . . . . . . . 4 20 . . . . . Prevented . | . . . . . . . . . . . . . . . . . Kills | -11 -10 -10 -9 -8 -8 -7 -6 -6 -5 -5 -5 -5 -4 -4 -3 -2 ------- Run | Scr Mat Min Mat Mat Sto Fac Fac DSF Fac Upp Upp Zhi Pro Fac Res Res Combat Hostiles Destroyed 91 | . 3 6 23 1 22 11 . . 3 4 8 . . . 5 5 Melee 13 | . . . . . 6 2 . . . . 5 . . . . . Guns 19 | . . 1 8 . . . . . 2 2 1 . . . 5 . Cannons 31 | . 3 . 13 1 6 3 . . 1 2 2 . . . . . AOE 17 | . . 5 1 . 8 . . . . . . . . . . 3 Classes Destroyed 19 | 1 3 3 2 . 4 4 . . . . 2 . . . . . Worker 7 | . . 1 . . 3 2 . . . . . . . . 1 . Builder 2 | . . . . . 2 . . . . . . . . . . . Tunneler 1 | . . . . . . 1 . . . . . . . . . . Hauler 2 | . . . . . 2 . . . . . . . . . . . Recycler 11 | 1 . . . . 3 5 . . . . . . . 1 1 . Mechanic 1 | . . . . . 1 . . . . . . . . . . . Operator 3 | . 1 . 1 . 1 . . . . . . . . . . . Drone 1 | . . . . . . . . . . . 1 . . . . . Watcher 14 | . 1 . 4 1 2 4 . . . . . . . . 2 . Swarmer 18 | . . 3 3 . 3 . . . 3 4 2 . . . . . Grunt 35 | . 3 . 14 . 11 4 . . . . 2 . . . 1 . Brawler 2 | . . . . . 1 . . . . . 1 . . . . . Duelist 2 | . . . 2 . . . . . . . . . . . . . Sentry 17 | . . . 4 1 7 2 . . . . 1 . . . 2 . Specialist 2 | . . . . . . 2 . . . . . . . . . . Hunter 3 | . . . . . . . . . . . 1 . . . . 2 Programmer 7 | . . . . . . 2 . . . . . . . . 2 3 Heavy 1 | . . . . . . 1 . . . . . . . . . . Assembled 3 | . . 3 . . . . . . . . . . . . . . Best Kill Streak 7 | 1 3 3 7 2 6 3 . . 3 3 3 . . 1 5 2 Combat Bots Only 6 | . 2 3 6 1 5 2 . . 3 3 3 . . . 2 2 Max Kills in Single Turn 3 | 1 1 1 1 1 3 1 . . 1 1 1 . . 1 1 1 Gunslinging . | . . . . . . . . . . . . . . . . . Exploded 3 | . . 1 1 . 3 . . . . . . . . . . 1 Melee 1 | . . . . . 1 1 . . . . 1 . . . . . Uniques/NPCs Destroyed . | . . . . . . . . . . . . . . . . . Combat | -11 -10 -10 -9 -8 -8 -7 -6 -6 -5 -5 -5 -5 -4 -4 -3 -2 -------- Run | Scr Mat Min Mat Mat Sto Fac Fac DSF Fac Upp Upp Zhi Pro Fac Res Res Damage Taken 12279 | . 200 59 900 60 1009 1708 . 1610 110 218 2139 . 214 . 1074 2978 Core 3673 | . . . 246 . 57 302 . 457 34 31 763 . 112 . 146 1525 Absorbed by Shields 239 | . . . . . . . . . . . . . . . 103 136 Redirected to Shielding 171 | . . . . . . . . . . . . . 32 . 139 . Regen/Repaired (Parts) 220 | . . . . . 74 146 . . . . . . . . . . Core Remaining (%) 69 | 100 . 100 38 . 89 56 . 46 . . . . 5 100 88 . Volleys Fired 268 | 5 16 12 59 3 40 38 . . 3 12 7 . . 5 42 26 Largest 3 | 1 2 2 3 2 2 2 . . 2 2 3 . . 1 1 1 Hottest 186 | 40 120 93 150 150 150 149 . . 129 129 186 . . 94 88 94 Shots Fired 448 | 5 28 18 136 6 70 67 . . 6 24 15 . . 5 42 26 Gun 203 | 5 10 7 67 . . 29 . . 3 12 4 . . 5 42 19 Cannon 224 | . 18 4 68 6 64 38 . . 3 12 11 . . . . . Launcher 21 | . . 7 1 . 6 . . . . . . . . . . 7 Special . | . . . . . . . . . . . . . . . . . Kinetic 81 | . 10 7 21 . . . . . 3 12 13 . . . 15 . Thermal 333 | 5 18 4 114 6 64 67 . . 3 12 2 . . 5 14 19 Explosive 21 | . . 7 1 . 6 . . . . . . . . . . 7 Electromagnetic 13 | . . . . . . . . . . . . . . . 13 . Robot Hit Streak 19 | 4 5 4 10 8 8 6 . . 6 4 5 . . 8 17 19 Robot Miss Streak 4 | 1 2 4 3 1 4 2 . . 1 1 2 . . 1 2 1 Penetration Max 1 | . . . . . . . . . . . . . . . 1 . Secondary Targets . | . . . . . . . . . . . . . . . . . Shots Hit Robots 373 | 4 17 5 90 4 69 74 . . 3 16 31 . . 4 31 25 Core Hits 171 | 2 6 13 41 2 48 16 . . 3 4 11 . . 2 17 6 Critical Kills 9 | . . . . . 3 2 . . . . 1 . . . 3 . Critical Parts Destroyed 15 | . . . . . 4 9 . . . . 1 . . . 1 . Critical Strikes 35 | . . . 4 . 8 13 . . 1 . 4 . . . 4 1 Burn 7 | . . . 4 . . 2 . . . . . . . . . 1 Meltdown 1 | . . . . . 1 . . . . . . . . . . . Destroy 6 | . . . . . . . . . . . 2 . . . 4 . Blast 2 | . . . . . . . . . 1 . 1 . . . . . Smash 18 | . . . . . 7 11 . . . . . . . . . . Impale 1 | . . . . . . . . . . . 1 . . . . . Melee Attacks 98 | . . . . . 26 48 . . . . 24 . . . . . Impact 74 | . . . . . 26 48 . . . . . . . . . . Slashing . | . . . . . . . . . . . . . . . . . Piercing 24 | . . . . . . . . . . . 24 . . . . . Sneak Attacks 20 | . . . . . 10 7 . . . . 3 . . . . . Combat Hostiles 3 | . . . . . . . . . . . 3 . . . . . Follow-up Attacks . | . . . . . . . . . . . . . . . . . Damage Inflicted 12574 | 42 284 374 1647 100 3459 2760 . . 76 333 999 . . 112 1054 1334 Guns 3149 | 42 75 28 699 . . 314 . . 47 189 44 . . 112 1054 545 Cannons 3102 | . 209 17 811 100 975 695 . . 29 144 122 . . . . . Explosions 2313 | . . 329 137 . 1058 . . . . . . . . . . 789 Melee 4010 | . . . . . 1426 1751 . . . . 833 . . . . . Ramming . | . . . . . . . . . . . . . . . . . Kinetic 1028 | . 75 28 182 . . . . . 29 144 138 . . . 432 . Thermal 4934 | 42 209 17 1328 100 975 1009 . . 47 189 28 . . 112 333 545 Explosive 2313 | . . 329 137 . 1058 . . . . . . . . . . 789 Electromagnetic 289 | . . . . . . . . . . . . . . . 289 . Impact 3177 | . . . . . 1426 1751 . . . . . . . . . . Slashing . | . . . . . . . . . . . . . . . . . Piercing 833 | . . . . . . . . . . . 833 . . . . . Highest Corruption 18 | . . . . . . 3 . . . . 18 18 18 . 6 . Average Corruption 6 | . . . . . . 2 . . . . 14 18 18 . 2 . Corruption Purged 14 | . . . . . . 8 . . . . . . . . 6 . Corruption Blocked . | . . . . . . . . . . . . . . . . . Effects 19 | . . . . . . 4 . . . . 3 5 3 . 4 . Message Errors 4 | . . . . . . 1 . . . . 1 2 . . . . Matter Fused 6 | . . . . . . 1 . . . . 1 1 1 . 2 . Heat Flow Errors 1 | . . . . . . . . . . . . . 1 . . . Energy Discharges 2 | . . . . . . 1 . . . . . . . . 1 . Data Loss (minor) 5 | . . . . . . 1 . . . . . 2 1 . 1 . Weapon Failures 1 | . . . . . . . . . . . 1 . . . . . Overload Shots . | . . . . . . . . . . . . . . . . . Overflow Damage 1547 | . . 15 5 . 569 841 . . . . . . . . . 117 Projectiles 27 | . . . 5 . . 22 . . . . . . . . . . Explosions 154 | . . 15 . . 22 . . . . . . . . . . 117 Melee 1366 | . . . . . 547 819 . . . . . . . . . . Knockbacks 12 | . . . . . 1 6 . . . 3 2 . . . . . Impact 7 | . . . . . 1 6 . . . . . . . . . . Kinetic 5 | . . . . . . . . . . 3 2 . . . . . Secondary . | . . . . . . . . . . . . . . . . . Self-Inflicted Damage 41 | . . . 41 . . . . . . . . . . . . . Shots 1 | . . . 1 . . . . . . . . . . . . . Rammed . | . . . . . . . . . . . . . . . . . Targets Rammed . | . . . . . . . . . . . . . . . . . Kicked . | . . . . . . . . . . . . . . . . . Crushed . | . . . . . . . . . . . . . . . . . Highest Temperature 495 | 20 383 . 270 33 273 315 . 4 237 495 114 . 278 106 219 55 Average Temperature 92 | 20 161 . 52 14 60 94 . 4 142 233 38 . 227 55 73 28 Received Heat Transfer 2035 | . 111 . 282 36 468 387 . 36 9 9 379 . 88 . 104 126 Effects 11 | . 2 . . . 2 2 . . . 4 . . 1 . . . Shutdowns 2 | . . . . . . . . . . 2 . . . . . . Energy Bleed 1 | . 1 . . . . . . . . . . . . . . . Interference 6 | . 1 . . . 2 2 . . . . . . 1 . . . Matter Decay 2 | . . . . . . . . . . 2 . . . . . . Siege Activations . | . . . . . . . . . . . . . . . . . Robots Corrupted 1 | . . . . . . . . . . . . . . . 1 . Combat Hostiles . | . . . . . . . . . . . . . . . . . Parts Fried 23 | . . . . . 8 14 . . . . . . . . 1 . Impact Corruptions 45 | . . . . . 17 28 . . . . . . . . . . Robots Melted 5 | . . . 1 . 1 1 . . . . . . . . . 2 Combat Hostiles 5 | . . . 1 . 1 1 . . . . . . . . . 2 Parts Melted 19 | . 2 . 10 . 3 2 . . . . . . . 1 1 . Heat Transferred 8836 | 100 444 37 3182 148 1443 1743 . . 74 296 37 . . 148 407 777 Parts Sabotaged . | . . . . . . . . . . . . . . . . . Parts Stolen . | . . . . . . . . . . . . . . . . . Parts Stripped . | . . . . . . . . . . . . . . . . . Power Chain Reactions . | . . . . . . . . . . . . . . . . . Missiles Intercepted . | . . . . . . . . . . . . . . . . . Alert | -11 -10 -10 -9 -8 -8 -7 -6 -6 -5 -5 -5 -5 -4 -4 -3 -2 ------- Run | Scr Mat Min Mat Mat Sto Fac Fac DSF Fac Upp Upp Zhi Pro Fac Res Res Peak Influence 553 | 5 149 166 517 115 553 292 95 81 121 . . . . 174 539 523 Initial 201 | . 3 . 64 46 48 182 90 66 . . . . . 103 90 201 Average 183 | 1 45 38 256 73 306 117 91 23 19 . . . . 120 279 406 Maximum Alert Level 2 | . . . 2 . 2 1 . . . . . . . . 2 2 Low Security (%) 58 | 100 100 100 26 100 20 83 100 100 100 . . . . 100 23 . Level 1 29 | . . . 59 . 49 16 . . . . . . . . 67 39 Level 2 11 | . . . 14 . 29 . . . . . . . . . 9 60 Level 3 . | . . . . . . . . . . . . . . . . . Level 4 . | . . . . . . . . . . . . . . . . . Level 5 . | . . . . . . . . . . . . . . . . . High Security . | . . . . . . . . . . . . . . . . . Max Security . | . . . . . . . . . . . . . . . . . Squads Dispatched 25 | . 2 . 2 . 3 7 . 1 1 . 1 . . 1 3 4 Investigation 1 | . . . . . . 1 . . . . . . . . . . Extermination 5 | . . . . . . 3 . . . . . . . 1 . 1 Reinforcement 16 | . 2 . 2 . 1 3 . 1 1 . . . . . 3 3 Assault 3 | . . . . . 2 . . . . . 1 . . . . . Garrison . | . . . . . . . . . . . . . . . . . Intercept . | . . . . . . . . . . . . . . . . . Searches Triggered 1 | . . . . . . . . . . . . . . . . 1 Construction Impeded 2 | . . . 1 . . . . . . . . . . . . 1 Haulers Reinforced . | . . . . . . . . . . . . . . . . . Active Scanning Responses . | . . . . . . . . . . . . . . . . . Cargo Convoy Interrupts . | . . . . . . . . . . . . . . . . . Stealth | -11 -10 -10 -9 -8 -8 -7 -6 -6 -5 -5 -5 -5 -4 -4 -3 -2 --------- Run | Scr Mat Min Mat Mat Sto Fac Fac DSF Fac Upp Upp Zhi Pro Fac Res Res Distress Signals 7 | . . . 1 . 1 1 . . . . . . . . 1 3 Communications Jammed 12 | . . . . . . . . . . . 12 . . . . . Distress Signals 12 | . . . . . . . . . . . 12 . . . . . Times Spotted 223 | . 6 8 40 5 33 20 . 5 8 8 13 . 24 . 23 30 Peak Tracking Total 18 | . 3 15 5 3 9 3 . 4 3 2 8 . 18 1 5 8 Tactical Retreats 27 | . . 1 2 . 2 2 . . 2 2 2 . 3 . 4 7 Traps | -11 -10 -10 -9 -8 -8 -7 -6 -6 -5 -5 -5 -5 -4 -4 -3 -2 ------- Run | Scr Mat Min Mat Mat Sto Fac Fac DSF Fac Upp Upp Zhi Pro Fac Res Res Traps Triggered 6 | . . . 1 . . 4 . . . . . . . 1 . . Indirectly . | . . . . . . . . . . . . . . . . . Trap Hack Attempts . | . . . . . . . . . . . . . . . . . Triggered . | . . . . . . . . . . . . . . . . . Disarmed . | . . . . . . . . . . . . . . . . . Reprogrammed . | . . . . . . . . . . . . . . . . . Reused . | . . . . . . . . . . . . . . . . . Traps Extracted . | . . . . . . . . . . . . . . . . . Installed . | . . . . . . . . . . . . . . . . . Triggered 1 | . . . . . . . . . . . 1 . . . . . Machines | -11 -10 -10 -9 -8 -8 -7 -6 -6 -5 -5 -5 -5 -4 -4 -3 -2 ---------- Run | Scr Mat Min Mat Mat Sto Fac Fac DSF Fac Upp Upp Zhi Pro Fac Res Res Machines Disabled 7 | . 1 . 1 . 1 1 . . . . . . . . . 3 Max in Single Turn 2 | . 1 . 1 . . 1 . . . . . . . . . 2 Garrison Access 2 | . . . . . 1 . . . . . . . . 1 . . Machines Sabotaged . | . . . . . . . . . . . . . . . . . Garrisons Compromised . | . . . . . . . . . . . . . . . . . Overloaded Fab Kills . | . . . . . . . . . . . . . . . . . Hacking | -11 -10 -10 -9 -8 -8 -7 -6 -6 -5 -5 -5 -5 -4 -4 -3 -2 --------- Run | Scr Mat Min Mat Mat Sto Fac Fac DSF Fac Upp Upp Zhi Pro Fac Res Res Machines Accessed 51 | . 3 . 10 . 7 9 1 . 1 . 1 9 . 7 2 1 Terminals 23 | . 3 . 7 . 4 5 1 . 1 . . . . 1 1 . Fabricators 3 | . . . . . . 1 . . . . . . . 2 . . Repair Stations 4 | . . . . . 1 1 . . . . . . . 1 1 . Recycling Units 6 | . . . 2 . 1 1 . . . . . . . 1 . 1 Scanalyzers 2 | . . . 1 . . 1 . . . . . . . . . . Garrison Access 3 | . . . . . 1 . . . . . . . . 2 . . Total Hacks 160 | . 12 . 23 . 20 19 4 . 4 . 1 48 . 24 2 3 Successful 114 | . 9 . 16 . 11 9 1 . 3 . 1 48 . 16 . . Failed 46 | . 3 . 7 . 9 10 3 . 1 . . . . 8 2 3 Catastrophic 7 | . . . 2 . 1 2 . . . . . . . 2 . . Database Lockouts . | . . . . . . . . . . . . . . . . . Manual 18 | . 2 . 4 . 3 3 . . . . 1 2 . . 3 . Terminals 62 | . 12 . 13 . 13 9 4 . 4 . . . . 6 1 . Fabricators 6 | . . . . . . 2 . . . . . . . 4 . . Repair Stations 8 | . . . . . 2 2 . . . . . . . 3 1 . Recycling Units 20 | . . . 3 . 4 1 . . . . . . . 9 . 3 Scanalyzers 12 | . . . 7 . . 5 . . . . . . . . . . Garrison Access 3 | . . . . . 1 . . . . . . . . 2 . . Terminal Hacks 82 | . 9 . 6 . 6 4 1 . 3 . 1 48 . 4 . . Record 42 | . . . 1 . 2 . . . 1 . . 36 . 2 . . Part Schematic 4 | . . . . . . . . . . . . 4 . . . . Robot Analysis 4 | . . . . . . . . . . . . 4 . . . . Prototype ID Bank 5 | . . . . . 1 . . . . . . 4 . . . . Open Door 1 | . . . . . . . . . . . 1 . . . . . Open DSF 2 | . . . . . . 1 1 . . . . . . . . . Branch Access Points 1 | . 1 . . . . . . . . . . . . . . . Emergency Access Points 2 | . . . . . . 1 . . . . . . . 1 . . Alert Level 5 | . 2 . 2 . . . . . . . . . . 1 . . Unreport Threat 8 | . 1 . 2 . 2 1 . . 2 . . . . . . . Locate Traps 3 | . 1 . 1 . 1 . . . . . . . . . . . Dispatch Records 1 | . 1 . . . . . . . . . . . . . . . Recall Investigation 2 | . 1 . . . . 1 . . . . . . . . . . Hauler Manifests 1 | . 1 . . . . . . . . . . . . . . . Zone Layout 1 | . 1 . . . . . . . . . . . . . . . Fabricator Hacks 2 | . . . . . . 1 . . . . . . . 1 . . Load Schematic 1 | . . . . . . 1 . . . . . . . . . . Build 1 | . . . . . . . . . . . . . . 1 . . Repair Station Hacks 5 | . . . . . 2 2 . . . . . . . 1 . . Scan Component 3 | . . . . . 1 1 . . . . . . . 1 . . Repair 2 | . . . . . 1 1 . . . . . . . . . . Recycling Unit Hacks 15 | . . . 3 . 2 1 . . . . . . . 9 . . Recycle Component 5 | . . . . . . . . . . . . . . 5 . . Process 1 | . . . . . . . . . . . . . . 1 . . Report Inventory 5 | . . . 2 . 1 1 . . . . . . . 1 . . Retrieve Matter 2 | . . . . . . . . . . . . . . 2 . . Retrieve Components 2 | . . . 1 . 1 . . . . . . . . . . . Scanalyzer 8 | . . . 7 . . 1 . . . . . . . . . . Insert Component 4 | . . . 3 . . 1 . . . . . . . . . . Analyze 4 | . . . 4 . . . . . . . . . . . . . Garrison Access Hacks 2 | . . . . . 1 . . . . . . . . 1 . . Seal Access 2 | . . . . . 1 . . . . . . . . 1 . . Unauthorized Hacks . | . . . . . . . . . . . . . . . . . Terminals . | . . . . . . . . . . . . . . . . . Fabricators . | . . . . . . . . . . . . . . . . . Repair Stations . | . . . . . . . . . . . . . . . . . Recycling Units . | . . . . . . . . . . . . . . . . . Scanalyzers . | . . . . . . . . . . . . . . . . . Garrison Access . | . . . . . . . . . . . . . . . . . Data Cores Recovered 1 | . . . . . 1 . . . . . . . . . . . Used 1 | . . . . . 1 . . . . . . . . . . . Hacking Detections 39 | . 3 . 10 . 6 8 1 . 1 . . . . 6 3 1 Full Trace Events 1 | . . . . . 1 . . . . . . . . . . . Feedback Events . | . . . . . . . . . . . . . . . . . Feedback Blocked . | . . . . . . . . . . . . . . . . . Robot Schematics Acquired . | . . . . . . . . . . . . . . . . . Robots Built . | . . . . . . . . . . . . . . . . . Authchips . | . . . . . . . . . . . . . . . . . Time . | . . . . . . . . . . . . . . . . . Total Robot Build Rating . | . . . . . . . . . . . . . . . . . Part Schematics Acquired 7 | . . . 3 . . . . . . . . 4 . . . . Parts Built 1 | . . . . . . . . . . . . . . 1 . . Authchips . | . . . . . . . . . . . . . . . . . Time 46 | . . . . . . . . . . . . . . 46 . . Total Part Build Rating 9 | . . . . . . . . . . . . . . 9 . . Parts Repaired 2 | . . . . . 1 1 . . . . . . . . . . Time 45 | . . . . . 32 13 . . . . . . . . . . Parts Recycled 5 | . . . . . . . . . . . . . . 5 . . Recycled Matter 83 | . . . . . . . . . . . . . . 83 . . Retrieved Matter 83 | . . . . . . . . . . . . . . 83 . . Retrieved Components 15 | . . . 10 . 5 . . . . . . . . . . . Parts Scanalyzed 4 | . . . 3 . . 1 . . . . . . . . . . Part Schematics Acquired 3 | . . . 3 . . . . . . . . . . . . . Parts Damaged 1 | . . . 1 . . . . . . . . . . . . . Bothacking | -11 -10 -10 -9 -8 -8 -7 -6 -6 -5 -5 -5 -5 -4 -4 -3 -2 ------------ Run | Scr Mat Min Mat Mat Sto Fac Fac DSF Fac Upp Upp Zhi Pro Fac Res Res Used RIF Installer . | . . . . . . . . . . . . . . . . . Robots Hacked . | . . . . . . . . . . . . . . . . . Non-combat . | . . . . . . . . . . . . . . . . . Combat . | . . . . . . . . . . . . . . . . . Robot Hacks Applied . | . . . . . . . . . . . . . . . . . Relay Couplers Released . | . . . . . . . . . . . . . . . . . Fabnet Peak Effective % . | . . . . . . . . . . . . . . . . . Robots Rewired . | . . . . . . . . . . . . . . . . . Allies Hacked . | . . . . . . . . . . . . . . . . . Hacks Repelled . | . . . . . . . . . . . . . . . . . Allies | -11 -10 -10 -9 -8 -8 -7 -6 -6 -5 -5 -5 -5 -4 -4 -3 -2 -------- Run | Scr Mat Min Mat Mat Sto Fac Fac DSF Fac Upp Upp Zhi Pro Fac Res Res Total Allies 2 | . . . . . 2 . . . . . . . . . . . Largest Group 2 | . . . . . 2 2 . . . . . . . . . . Highest-Rated Group 62 | . . . . . 62 62 . . . . . . . . . . Highest-Rated Ally 31 | . . . . . 31 31 . . . . . . . . . . Total Orders . | . . . . . . . . . . . . . . . . . Ally Attacks 17 | . . . . . 8 9 . . . . . . . . . . Total Damage 226 | . . . . . 80 146 . . . . . . . . . . Kills 6 | . . . . . 4 2 . . . . . . . . . . Allies Corrupted . | . . . . . . . . . . . . . . . . . Allies Melted . | . . . . . . . . . . . . . . . . . Intel | -11 -10 -10 -9 -8 -8 -7 -6 -6 -5 -5 -5 -5 -4 -4 -3 -2 ------- Run | Scr Mat Min Mat Mat Sto Fac Fac DSF Fac Upp Upp Zhi Pro Fac Res Res Robot Analysis Total 4 | . . . . . . . . . . . . 4 . . . . Derelict Logs Recovered 3 | . . 2 . . . . . . . . . . 1 . . . Drone Launches . | . . . . . . . . . . . . . . . . . Drone Recoveries . | . . . . . . . . . . . . . . . . . Exploration | -11 -10 -10 -9 -8 -8 -7 -6 -6 -5 -5 -5 -5 -4 -4 -3 -2 ------------- Run | Scr Mat Min Mat Mat Sto Fac Fac DSF Fac Upp Upp Zhi Pro Fac Res Res Turns Passed 8324 | 76 405 692 1359 115 772 1852 5 56 174 807 463 89 70 334 505 550 Spaces Moved 7787 | 62 240 563 1078 58 508 1119 4 68 249 705 361 183 258 619 1006 706 Core 237 | 10 . . . . . . . . . . 70 91 . . 2 64 Treads . | . . . . . . . . . . . . . . . . . Legs 955 | . 127 335 . . . 493 . . . . . . . . . . Wheels 3104 | 52 113 228 1078 58 508 626 4 10 . 136 291 . . . . . Hover 1143 | . . . . . . . . 58 249 569 . . . . . 267 Flight 2348 | . . . . . . . . . . . . 92 258 619 1004 375 Fastest Speed 25 | 50 80 80 80 90 83 83 93 56 56 56 50 27 27 27 25 31 Average Speed 76 | 75 101 103 86 90 86 122 93 62 56 104 89 38 27 30 29 53 Slowest Speed 260 | 80 120 120 90 90 120 260 93 93 56 125 150 50 27 109 150 250 Overloaded Moves . | . . . . . . . . . . . . . . . . . Propulsion Burnouts . | . . . . . . . . . . . . . . . . . Robots Hopped 1 | . . . . . . . . . . . . . . . 1 . Cave-ins Triggered . | . . . . . . . . . . . . . . . . . Teleports 1 | . . . . . . . . . . . . 1 . . . . Exploration Rate (%) 42 | 5 28 93 67 10 54 27 . 98 8 67 41 62 56 15 24 20 Regions Visited 16 Branch Regions 6 Pre-discovered Areas 4 | . . 1 . . . . . . . . . 3 . . . . Known Exits Taken 4 | . 1 . 1 . . . 1 . . . . . . . 1 . Unknown Exits Taken 11 | 1 . 1 . 1 1 1 . . 1 1 1 1 1 1 . . Scrap Searched 2 | . . 1 . . . . . . . . 1 . . . . . Spaces Dug . | . . . . . . . . . . . . . . . . . Terrain Destroyed 175 | . . 57 10 2 59 . . . . 4 5 . . 1 . 37 Melee . | . . . . . . . . . . . . . . . . . Projectile 37 | . . . 3 2 22 . . . . 4 5 . . 1 . . AOE 138 | . . 57 7 . 37 . . . . . . . . . . 37 Terrain Rammed . | . . . . . . . . . . . . . . . . . Walls Destroyed . | . . . . . . . . . . . . . . . . . Machines Disabled . | . . . . . . . . . . . . . . . . . Actions | -11 -10 -10 -9 -8 -8 -7 -6 -6 -5 -5 -5 -5 -4 -4 -3 -2 --------- Run | Scr Mat Min Mat Mat Sto Fac Fac DSF Fac Upp Upp Zhi Pro Fac Res Res Total 9591 | 86 377 653 1390 114 716 1442 5 82 278 755 451 200 257 758 1176 851 Wait 863 | . 91 60 178 51 103 148 . . 1 24 23 . . 69 50 65 Move 7769 | 61 239 562 1077 57 507 1118 3 67 248 704 360 182 257 618 1003 706 Hop 1 | . . . . . . . . . . . . . . . 1 . Pick Up 191 | 13 11 5 28 1 14 24 . 5 13 2 6 8 . 22 24 15 Fast Attach 67 | . 2 2 5 . 3 12 . 1 1 1 8 . . 17 10 5 Attach 119 | 7 4 1 12 2 8 13 2 6 10 3 6 10 . 5 15 15 Detach 13 | . . . . . . . . . 1 2 2 . . 3 2 3 Swap 47 | . 3 3 5 . 6 11 . . . 5 3 . . . 4 7 Drop 150 | . 11 8 26 . 9 25 . 3 1 2 12 . . 19 25 9 Fire 268 | 5 16 12 59 3 40 38 . . 3 12 7 . . 5 42 26 Melee 98 | . . . . . 26 48 . . . . 24 . . . . . Ram . | . . . . . . . . . . . . . . . . . Kick . | . . . . . . . . . . . . . . . . . Crush . | . . . . . . . . . . . . . . . . . Escape Stasis 5 | . . . . . . 5 . . . . . . . . . . Rewire . | . . . . . . . . . . . . . . . . . Trap . | . . . . . . . . . . . . . . . . . Miscellaneous . | . . . . . . . . . . . . . . . . . Route ------- -11/Scrapyard -10/Materials (discovered 2 exits: *Min x2) -10/Mines (discovered 2 exits: *Mat x2) -9/Materials (discovered 2 exits: *Mat x2) -8/Materials -8/Storage -7/Factory -6/Factory -6/DSF -5/Factory -5/Upper Caves -5/Upper Caves (discovered 2 exits: *Fac / *Zhi) -5/Zhirov -4/Proximity Caves -4/Factory -3/Research (discovered 2 exits: *Res / Tes) -2/Research History --------- Turn | Location | Event 5 | -11/Scrapyard | Discovered new exit (range 15) 77 | -11/Scrapyard | Entered Materials 327 | -10/Materials | Build established: Mutant 428 | -10/Materials | Identified exit to Mines 482 | -10/Materials | Entered Mines 627 | -10/Mines | Assembled infested the area 632 | -10/Mines | Assisted by a Guerilla fighting off Assembled 661 | -10/Mines | Learned location of 1 exit from Materials 705 | -10/Mines | Received a Rocket Launcher from a helpful Derelict 977 | -10/Mines | Discovered new exit (range 7) 1118 | -10/Mines | Discovered new exit (range 16) 1137 | -10/Mines | Learned location of Storage (-8) 1174 | -10/Mines | Entered Materials 1174 | -9/Materials | Evolved 2 slots: Propulsion x1, Weapon x1 1175 | -9/Materials | Identified exit to Materials 1274 | -9/Materials | Build established: Scavenger-Mutant 2199 | -9/Materials | Build established: Mutant 2469 | -9/Materials | Discovered exit to Materials (range 6) 2519 | -9/Materials | Core integrity fell below 50% 2533 | -9/Materials | Entered another Materials area 2533 | -8/Materials | Evolved 2 slots: Propulsion x1, Utility x1 2563 | -8/Materials | Discovered new exit (range 9) 2648 | -8/Materials | Entered Storage 2898 | -8/Storage | Repaired Arm. Wheel 3049 | -8/Storage | Lost 3 parts (2n1w) 3330 | -8/Storage | Met a pair of Derelict thieves 3366 | -8/Storage | Discovered new exit (range 15) 3370 | -8/Storage | Build established: Scavenger-Mutant 3420 | -8/Storage | Entered Factory 3420 | -7/Factory | Accompanied by 2 allies 3420 | -7/Factory | Evolved 2 slots: Utility x2 4615 | -7/Factory | Build established: Mutant 4714 | -7/Factory | Repaired Sml. Storage Unit 5211 | -7/Factory | Discovered new exit (range 16) 5272 | -7/Factory | Entered another Factory area 5272 | -6/Factory | Evolved 2 slots: Utility x2 5276 | -6/Factory | Identified exit to DSF 5277 | -6/Factory | Entered DSF 5277 | -6/DSF | Met a pair of Sappers preparing to destroy DSF 5310 | -6/DSF | Additional patrols routed to DSF 5312 | -6/DSF | Core integrity fell below 50% 5326 | -6/DSF | Discovered new exit (range 15) 5333 | -6/DSF | Entered Factory 5333 | -5/Factory | Evolved 2 slots: Power x1, Utility x1 5339 | -5/Factory | Lost 13 parts (1p2n7u3w) 5504 | -5/Factory | Discovered new exit (range 3) 5507 | -5/Factory | Entered Upper Caves 5752 | -5/Upper Caves | Build established: Infiltrator-Mutant 6073 | -5/Upper Caves | Encountered a Warlord checkpoint 6259 | -5/Upper Caves | Discovered new exit (range 10) 6263 | -5/Upper Caves | Attracted the attention of an 0b10 checkpoint 6314 | -5/Upper Caves | Entered another Upper Caves area 6314 | -5/Upper Caves | Discovered new exit (range 5) 6648 | -5/Upper Caves | Attracted the attention of an 0b10 outpost 6732 | -5/Upper Caves | System corruption reached 10% 6733 | -5/Upper Caves | Core integrity fell below 50% 6744 | -5/Upper Caves | Core integrity fell below 20% 6768 | -5/Upper Caves | Discovered new exit (range 4) 6773 | -5/Upper Caves | Lost 17 parts (2p4n7u4w) 6777 | -5/Upper Caves | Entered Zhirov 6777 | -5/Zhirov | Discovered new exit (range 3) 6787 | -5/Zhirov | Met Zhirov 6796 | -5/Zhirov | Learned location of Quarantine (-2) 6796 | -5/Zhirov | Learned location of Testing (-3) 6796 | -5/Zhirov | Learned location of Command (-1) 6807 | -5/Zhirov | Zhirov requested help retrieving the SGEMP Prototype 6814 | -5/Zhirov | Found Alien Artifact 6815 | -5/Zhirov | Identified Integrated Reactor 6815 | -5/Zhirov | Installed Integrated Reactor, increased core energy generation (+10) 6845 | -5/Zhirov | Found Alien Artifact 6846 | -5/Zhirov | Identified Transdimensional Reconstructor 6846 | -5/Zhirov | Warped through subspace 6866 | -5/Zhirov | Entered Proximity Caves 6874 | -4/Proximity Caves | Learned 8 Research zone layouts 6927 | -4/Proximity Caves | Attracted the attention of an 0b10 base 6932 | -4/Proximity Caves | Discovered new exit (range 9) 6936 | -4/Proximity Caves | Entered Factory 6936 | -4/Factory | Evolved 2 slots: Utility x1, Weapon x1 7113 | -4/Factory | Found Prototype Processor 7113 | -4/Factory | Identified Exp. Targeting Computer 7184 | -4/Factory | Fabricated Adv. Cloaking Device (x1) 7259 | -4/Factory | Discovered new exit (range 15) 7270 | -4/Factory | Entered Research 7270 | -3/Research | Evolved 2 slots: Propulsion x1, Utility x1 7271 | -3/Research | Identified exit to Research 7271 | -3/Research | Identified exit to Testing 7502 | -3/Research | Lost 6 parts (5u1w) 7592 | -3/Research | Spotted B-86 Titan 7775 | -3/Research | Entered another Research area 7775 | -2/Research | Evolved 2 slots: Utility x2 7812 | -2/Research | Spotted B-90 Cyclops 7814 | -2/Research | Spotted B-90 Cyclops 7850 | -2/Research | Found Fusion Bomb Launcher 8002 | -2/Research | Core integrity fell below 50% 8038 | -2/Research | Lost 15 parts (2p4n8u1w) 8045 | -2/Research | Core integrity fell below 20% 8102 | -2/Research | Lost 3 parts (2n1u) 8323 | -2/Research | Search patrols dispatched 8325 | -2/Research | Destroyed by H-81 Overseer with Heavy Linear Accelerator Last Messages --------------- Destroyed Terrain Scanner. Destroyed Wheel. The unstable cave ceiling collapses. Acquired 1 matter. The unstable cave ceiling collapses. Slug penetrates Wall. ALERT: Rogue bot located, Programmers report to Research Zone 9X. Dropped ECM Suite. Acquired Enh. Quantum Rifle. Penetrated by Slug. Slug penetrates Antiparticle Reservoir. W-44 Eye sends out distress signal. Penetrated by Slug. Slug penetrates Wall. U-05 Engineer builds a Wall. U-05 Engineer lays Concrete. U-05 Engineer builds a Door. ALERT: Heightened foreign activity detected, multiple search patrols dispatched. Penetrated by Slug. [Achievement: 10k Club] Map ----- +----------------------------------------------------+ | ???????? | | ??????? | | ???????? | | ###+#################### #????????????? | | # ## """S""" # #????????????? | | # ## """ """ # ^ #????????????? | | # """" ## + """ #????????????? | | # ""S"" ## # "G #???????????## | | # "" "" ## ] # """ ############ # | | # ## # ## | | # ## # ##p | | # ######+##+#### ## | | ################ #??# ##! """ * | | #??# [ " """" | | #?## # """" | | ## " """ | | ## # | | ############# ######## " ] / | | #??########?# # # # | | #? ]! #?# ! # +^ # | | #? ]! #?# # ######### | | # ! #?# # #???????########+#### | | # #?# + #????????????##" ###? | | + #?# # #????????????# ## | | # #?# ############????##### = | | # #?# %@ | | #? #?# ##+###############??####### ! | | #?#########?# # #????###???????????# " | | #???????????# # #????# ?????????#######" | | ############# # #????# ????????# ?# | | # # # #????# ??????? #! # | | # # # #????# ????? # # | | # # # #????# ? # + | | # # ########????# """" # # | | # #+############# """" # # | | #^ * # ## """" # ?# | | + # h ## """" # ?# | | # # h #? # ??# | | # # """ "" #??? ?# ??## | | # # """ "" #????? ???####????# | | # # """ "" ########+############?# | | # # """ Y" # !+ # ### | | # # """ "" # # # ??# | | ############# """ Y"" # # # """"" ??# | | #???????????# "" # # + """"" ## | | #???????????# # # # """"" ## | | #???????????# ###### # ## | | ############## ## +### ####### # ## | | # *### | | ###########?? | +----------------------------------------------------+ Best States ------------- Heat Dissipation 84 Energy Generation 56 Energy Capacity 565 Matter Stores 306 Matter Capacity 600 Sight Range 16 Robot Scan Range 14 Terrain Scan Range 16 Terrain Scan Density 10 ECM Strength 2 Jamming Range 12 Cloak Strength 4 Power Amplification 60 Additional Mass Support 9 Corruption Block 35 Resistance: KI 20 Resistance: EX 50 Propulsion Shielding 90 Melee Speed Boost 20 Evasion (%) 77 Targeting Accuracy 12 Melee Accuracy 5 Core Analysis 6 Matter Filtering 50 Kinecelleration 40 Offensive Hacking 10 Defensive Hacking 12 Item Schematics ----------------- Arm. Wheel | -9/Materials | Scanalyzed Lgt. Nuclear Core | -9/Materials | Scanalyzed Mni. Grenade Launcher | -9/Materials | Scanalyzed Assault Drone Bay | -5/Zhirov | Free Exp. Heat Sink | -5/Zhirov | Free Exp. Optical Array | -5/Zhirov | Free Imp. Arc Thrower | -5/Zhirov | Free Robot Schematics ------------------ None Fabricated ------------ Adv. Cloaking Device | x1 | -4/Factory | Preloaded Alien Tech Used ----------------- Integrated Reactor Transdimensional Reconstructor Achievements -------------- 10k Club Alien Tech Armchair Analyst Dangerous Findings Dodgeball, But With Guns I Survived The Infestation I'm Back, Baby! It's Just You Just What I Needed Power Corrupts Prolific Hacker Respectable Loadout Serviceable Loadout Subspace Traveler The Science Guy Total Silence Challenges ------------ None Game ------ Seed PulseLauncherKit Manual? 0 Play Time 03:38:18 Cumulative 37.3 hours Start 2022.07.26 @ 11:24:53 End 2022.07.26 @ 23:41:59 Sessions 5 Manual Loads 0 Difficulty Rogue Special Mode None Game No. 38 Rogue 38 Adventurer 0 Explorer 0 Win Type - Total 0 Types 0/0/0/0/0/0/0/0/0 Lore% 21 Gallery% 31 Achievement% 21 Wizard Run 0 Options --------- ASCII 0 Keyboard 0 Movement Mouse Keybinds 0 Fullscreen 1 Font 24/Smallcaps Map View 113x50 Tactical HUD 0 Map Filters NONE Filters NONE Steam 1 RUN: e75c3dab-8c36-4f19-a319-714f63d41649